Cogmind - Beta 13 @@@ ROGUE MODE // 2024.05.09 @ 15:24:53 Player: BionicBot Result: Destroyed by G-47 Trooper with Particle Gun Performance ------------- Evolutions (1) 500 Regions Visited (2) 400 Robots Destroyed (35) 175 Value Destroyed (825) 825 Prototype IDs (4) 80 Alien Tech Used (0) 0 Bonus (65) 65 TOTAL SCORE: 2045 Bonus ------- High Alert Combat Kills 65 Cogmind --------- Core Integrity 0/400 Matter 300/300 Energy 81/100 System Corruption 0% Temperature Cool (27) Movement Core (50) Location -9/Materials Parts ------- > --- POWER (1) -------- (None) > --- PROPULSION (2) --- (None) > --- UTILITY (4) ------ (None) > --- WEAPON (2) ------- (None) > --- INVENTORY (5) ---- EM Pulse Gun Spread Laser Rocket Launcher Datajack Flail Peak State ------------ > --- POWER ------------ Nuclear Core > --- PROPULSION ------- Wheel Wheel > --- UTILITY ---------- Small Storage Unit Machine Analyzer Terrain Scan Processor Tractor Beam > --- WEAPON ----------- Beam Rifle Rocket Launcher > --- INVENTORY -------- Nuclear Core Compact Wheel Machine Analyzer EM Pulse Gun Medium Laser Light Assault Rifle Datajack Flail [Rating: 17] Favorites ----------- Power Nuclear Core Engine Light Ion Engine Power Core Nuclear Core Propulsion Wheel Wheel Wheel Utility Small Storage Unit Device Tractor Beam Storage Small Storage Unit Processor Terrain Scan Processor Weapon Medium Laser Energy Gun Medium Laser Ballistic Gun Light Assault Rifle Launcher Rocket Launcher Build | -11 -10 -9 ------- Run | Yrd Mat Mat Slots Evolved 2 | . . 2 Power . | . . . Propulsion . | . . . Utility 2 | . . 2 Weapon . | . . . Parts Attached 37 | 7 2 28 Power 5 | . 1 4 Engine 2 | . 1 1 Core 3 | . . 3 Reactor . | . . . Propulsion 8 | 2 1 5 Treads . | . . . Leg . | . . . Wheel 8 | 2 1 5 Hover . | . . . Flight . | . . . Utility 9 | 2 . 7 Device 3 | 1 . 2 Storage 3 | 1 . 2 Processor 3 | . . 3 Hackware . | . . . Protection . | . . . Artifact . | . . . Weapon 15 | 3 . 12 Energy Gun 9 | 2 . 7 Energy Cannon . | . . . Ballistic Gun 2 | 1 . 1 Ballistic Cannon . | . . . Launcher 4 | . . 4 Special Weapon . | . . . Impact Weapon . | . . . Slashing Weapon . | . . . Piercing Weapon . | . . . Special Melee Weapon . | . . . Unidentified Prototypes . | . . . Parts Lost 8 | . . 8 Power 3 | . . 3 Propulsion 4 | . . 4 Utility . | . . . Weapon 1 | . . 1 Highest Loss Streak 4 | . . 4 To Critical Strikes . | . . . Average Slot Usage (%) 95 | . 94 95 Engine 4 | . 9 3 Core 6 | . . 7 Wheel 22 | . 28 20 Device 8 | . 14 6 Storage 11 | . 14 10 Processor 20 | . . 23 Energy Gun 16 | . 14 17 Ballistic Gun 4 | . 14 2 Launcher 1 | . . 1 Naked Turns 19 | . . 19 Heaviest Build 48 | 9 12 48 Greatest Support 26 | 26 26 20 Greatest Overweight (x) 2 | . . 2 Average Overweight (x) . | . . . Largest Inventory Capacity 20 | 8 8 20 Average Capacity 9 | 7 8 10 Most Carried 15 | 3 3 15 Average Carried 7 | 1 3 8 Final Capacity 8 | 8 8 5 Final Carried 5 | 3 3 5 Class Distribution -------------------- 97% | Mutant Dominant Class ---------------- Mutant | -10/Materials Mutant | -9/Materials Resources | -11 -10 -9 ----------- Run | Yrd Mat Mat Matter Collected 732 | 274 27 431 Remotely 411 | 71 27 313 Salvage Created 1146 | 100 38 1008 Parts 69 | 6 5 58 Haulers Intercepted 2 | . . 2 Recyclers Shooed 1 | 1 . . Parts Field Recycled . | . . . Retrieved Matter . | . . . Parts Self-Destructed . | . . . Prevented . | . . . Kills | -11 -10 -9 ------- Run | Yrd Mat Mat Combat Hostiles Destroyed 21 | . . 21 Guns 10 | . . 10 AOE 10 | . . 10 Classes Destroyed 10 | 2 2 6 Worker 6 | . 1 5 Tunneler 1 | 1 . . Hauler 2 | . . 2 Recycler 3 | 1 . 2 Operator 1 | . 1 . Watcher 1 | . . 1 Swarmer 4 | . . 4 Grunt 12 | . . 12 Duelist 1 | . . 1 Sentry 4 | . . 4 Best Kill Streak 6 | 2 2 6 Combat Bots Only 4 | . . 4 Max Kills in Single Turn 3 | 1 1 3 Gunslinging . | . . . Exploded 3 | . . 3 Melee . | . . . Uniques/NPCs Destroyed . | . . . Combat | -11 -10 -9 -------- Run | Yrd Mat Mat Hostile Shots Fired 117 | . . 117 Missed 31 | . . 31 Damage Taken 1129 | . . 1129 Core 413 | . . 413 Absorbed by Shields . | . . . Core Remaining (%) 100 | 100 100 . Volleys Fired 88 | 4 7 77 Largest 2 | 2 2 2 Hottest 106 | 70 70 106 Shots Fired 172 | 8 14 150 Gun 160 | 8 14 138 Cannon . | . . . Launcher 12 | . . 12 Special . | . . . Kinetic 34 | 4 7 23 Thermal 121 | 4 7 110 Explosive 12 | . . 12 Electromagnetic 5 | . . 5 Robot Hit Streak 19 | 3 5 19 Robot Miss Streak 4 | 1 3 4 Penetration Max . | . . . Secondary Targets 2 | . . 2 Max Gunslinging Chain 1 | . . 1 Shots Hit Robots 113 | 5 7 101 Core Hits 53 | 4 4 45 Critical Kills . | . . . Critical Parts Destroyed . | . . . Critical Strikes 7 | . . 7 Burn 7 | . . 7 Melee Attacks . | . . . Impact . | . . . Slashing . | . . . Piercing . | . . . Sneak Attacks . | . . . Combat Hostiles . | . . . Follow-up Attacks . | . . . Damage Inflicted 2492 | 42 76 2374 Guns 1349 | 42 76 1231 Cannons . | . . . Explosions 1127 | . . 1127 Melee . | . . . Ramming 16 | . . 16 Kinetic 226 | 30 14 182 Thermal 1061 | 12 62 987 Explosive 1127 | . . 1127 Electromagnetic 62 | . . 62 Impact . | . . . Slashing . | . . . Piercing . | . . . Highest Corruption . | . . . Average Corruption . | . . . Corruption Purged . | . . . Corruption Blocked . | . . . Overload Shots . | . . . Overflow Damage 14 | . . 14 Projectiles . | . . . Explosions 14 | . . 14 Melee . | . . . Knockbacks . | . . . Impact . | . . . Kinetic . | . . . Secondary . | . . . Self-Inflicted Damage 20 | . . 20 Shots 2 | . . 2 Rammed 6 | . . 6 Targets Rammed 6 | . . 6 Kicked . | . . . Crushed . | . . . Highest Temperature 301 | 20 40 301 Average Temperature 82 | 15 20 87 Received Heat Transfer 507 | . . 507 Effects 5 | . . 5 Energy Bleed 1 | . . 1 Interference 4 | . . 4 Siege Activations . | . . . Robots Corrupted . | . . . Combat Hostiles . | . . . Parts Fried . | . . . Impact Corruptions . | . . . Robots Melted 2 | . . 2 Combat Hostiles 1 | . . 1 Parts Melted 16 | . . 16 Heat Transferred 3441 | 37 185 3219 Parts Sabotaged . | . . . Parts Stolen . | . . . Parts Stripped . | . . . Power Chain Reactions . | . . . Alert | -11 -10 -9 ------- Run | Yrd Mat Mat Peak Influence 550 | 10 75 550 Initial 31 | . 6 31 Average 274 | 4 48 341 Maximum Alert Level 2 | . . 2 Low Security (%) 43 | 100 100 27 Level 1 13 | . . 17 Level 2 43 | . . 55 Level 3 . | . . . Level 4 . | . . . Level 5 . | . . . High Security . | . . . Max Security . | . . . Squads Dispatched 4 | . . 4 Investigation 1 | . . 1 Extermination . | . . . Reinforcement . | . . . Assault 3 | . . 3 Garrison . | . . . Intercept . | . . . Searches Triggered . | . . . Construction Impeded . | . . . Haulers Reinforced . | . . . Active Scanning Responses . | . . . Cargo Convoy Interrupts . | . . . Stealth | -11 -10 -9 --------- Run | Yrd Mat Mat Distress Signals 1 | . . 1 Communications Jammed . | . . . Distress Signals . | . . . Times Spotted 44 | . 2 42 Peak Tracking Total 8 | . 1 8 Tactical Retreats 2 | . . 2 Traps | -11 -10 -9 ------- Run | Yrd Mat Mat Traps Triggered 2 | . . 2 Indirectly . | . . . Trap Hack Attempts . | . . . Triggered . | . . . Disarmed . | . . . Reprogrammed . | . . . Reused . | . . . Traps Extracted . | . . . Installed . | . . . Triggered . | . . . Machines | -11 -10 -9 ---------- Run | Yrd Mat Mat Machines Disabled 7 | . . 7 Max in Single Turn 3 | . . 3 Machines Repaired . | . . . Machines Dismantled . | . . . Machines Sabotaged . | . . . Overloaded Fab Kills . | . . . Hacking | -11 -10 -9 --------- Run | Yrd Mat Mat Machines Accessed 8 | . 5 3 Terminals 8 | . 5 3 Fabricators . | . . . Repair Stations . | . . . Recycling Units . | . . . Scanalyzers . | . . . Garrison Access . | . . . Total Hacks 22 | . 14 8 Successful 7 | . 5 2 Failed 15 | . 9 6 Catastrophic 5 | . 2 3 Database Lockouts . | . . . Manual 15 | . 9 6 Terminals 22 | . 14 8 Fabricators . | . . . Repair Stations . | . . . Recycling Units . | . . . Scanalyzers . | . . . Garrison Access . | . . . Terminal Hacks 4 | . 3 1 Prototype ID Bank 2 | . 2 . Branch Access Points 1 | . 1 . Zone Layout 1 | . . 1 Fabricator Hacks . | . . . Repair Station Hacks . | . . . Recycling Unit Hacks . | . . . Scanalyzer . | . . . Garrison Access Hacks . | . . . Unauthorized Hacks 3 | . 2 1 Terminals 3 | . 2 1 Botnet 3 | . 2 1 Fabricators . | . . . Repair Stations . | . . . Recycling Units . | . . . Scanalyzers . | . . . Garrison Access . | . . . Data Cores Recovered 1 | . 1 . Used . | . . . Hacking Detections 8 | . 5 3 Full Trace Events . | . . . Feedback Events . | . . . Feedback Blocked . | . . . Robot Schematics Acquired . | . . . Robots Built . | . . . Authchips . | . . . Time . | . . . Total Robot Build Rating . | . . . Part Schematics Acquired . | . . . Parts Built . | . . . Authchips . | . . . Time . | . . . Total Part Build Rating . | . . . Parts Repaired . | . . . Time . | . . . Parts Recycled . | . . . Recycled Matter . | . . . Retrieved Matter . | . . . Retrieved Components . | . . . Parts Scanalyzed . | . . . Part Schematics Acquired . | . . . Parts Damaged . | . . . Bothacking | -11 -10 -9 ------------ Run | Yrd Mat Mat Used RIF Installer . | . . . Robots Hacked . | . . . Non-combat . | . . . Combat . | . . . Robot Hacks Applied . | . . . Relay Couplers Released . | . . . Fabnet Peak Effective % . | . . . Robots Rewired . | . . . Allies Hacked . | . . . Hacks Repelled . | . . . Allies | -11 -10 -9 -------- Run | Yrd Mat Mat Total Allies . | . . . Largest Group . | . . . Highest-Rated Group . | . . . Highest-Rated Ally . | . . . Total Orders . | . . . Ally Attacks . | . . . Total Damage . | . . . Kills . | . . . Allies Corrupted . | . . . Allies Melted . | . . . Intel | -11 -10 -9 ------- Run | Yrd Mat Mat Robot Analysis Total . | . . . Derelict Logs Recovered . | . . . Drone Launches . | . . . Drone Recoveries . | . . . Exploration | -11 -10 -9 ------------- Run | Yrd Mat Mat Turns Passed 1140 | 69 179 892 Spaces Moved 925 | 51 176 698 Core 28 | 2 . 26 Treads . | . . . Legs . | . . . Wheels 897 | 49 176 672 Hover . | . . . Flight . | . . . Fastest Speed 50 | 50 80 50 Average Speed 83 | 88 86 82 Slowest Speed 110 | 90 90 110 Overloaded Moves . | . . . Propulsion Burnouts . | . . . Robots Hopped . | . . . Cave-ins Triggered . | . . . Exploration Rate (%) 28 | 3 36 46 Regions Visited 2 Branch Regions . Pre-discovered Areas . | . . . Known Exits Taken . | . . . Unknown Exits Taken 2 | 1 1 . Scrap Searched . | . . . Spaces Dug . | . . . Terrain Destroyed 67 | . . 67 Melee . | . . . Projectile . | . . . AOE 67 | . . 67 Terrain Rammed . | . . . Walls Destroyed . | . . . Machines Disabled . | . . . Actions | -11 -10 -9 --------- Run | Yrd Mat Mat Total 1109 | 64 188 857 Wait 31 | . 4 27 Move 923 | 50 175 698 Hop . | . . . Pick Up 18 | 3 . 15 Fast Attach 13 | 6 1 6 Attach 5 | . . 5 Detach 1 | . . 1 Swap 19 | 1 1 17 Drop 4 | . . 4 Fire 88 | 4 7 77 Melee . | . . . Ram 6 | . . 6 Kick . | . . . Crush . | . . . Escape Stasis . | . . . Rewire 1 | . . 1 Trap . | . . . Miscellaneous . | . . . Route ------- -11/Scrapyard -10/Materials (discovered 2 exits: *Mat / Min) -9/Materials (discovered 1 exit: *Mat) History --------- Turn | Location | Event 25 | -11/Scrapyard | Discovered new exit (range 14) 70 | -11/Scrapyard | Entered Materials 214 | -10/Materials | Discovered new exit (range 11) 234 | -10/Materials | Identified exit to Mines 249 | -10/Materials | Entered another Materials area 249 | -9/Materials | Evolved 2 slots: Utility x2 306 | -9/Materials | Build established: Mutant 746 | -9/Materials | Discovered new exit (range 14) 765 | -9/Materials | Identified exit to Materials 1049 | -9/Materials | First assault squad dispatched 1061 | -9/Materials | Core integrity fell below 50% 1122 | -9/Materials | Released all parts (7) 1125 | -9/Materials | Core integrity fell below 20% 1141 | -9/Materials | Destroyed by G-47 Trooper with Particle Gun Last Messages --------------- 01122_ Released Hcp. Storage Unit. 01122_ Released Beam Rifle. 01122_ Beam Rifle crushed and broken. 01122_ Released Terrain Scan Processor. 01122_ Released Signal Interpreter. 01122_ Released Com. Wheel. 01122_ Com. Wheel crushed and broken. 01122_ Released Cooling System. 01122_ Cooling System crushed and broken. 01122_ Slammed into G-34 Mercenary. 01125_ Acquired 11 matter. 01125_ Slammed into G-47 Trooper. 01126_ K-01 Serf collects debris. 01127_ Slammed into K-01 Serf. 01141_ C-30 ARC bursts open, deploying its payload. 01141_ G-47 Trooper unfolds itself. 01141_ G-34 Mercenary unfolds itself. 01141_ B-36 Bruiser unfolds itself. 01141_ M-13 Machinist unfolds itself. 01141_ Critical hit (Burn: +37). Map ----- +----------------------------------------------------+ | * # "" " #????????# #????# ########???? | | %=# #????????# #????# # #???? | | "*%+ #????????# #????# # #???? | | [# ##???????? #????# # " #???? | | # ##?????????? ??????# # """#???? | | ######+####################+######### # """#???? | | =! %*% = !%= # """#???? | | *!!!= =[** + "" #???? | | =!= =%=% [ # """#???? | | #######################%############### ""#???? | | ?????????#######??????#=#?????????????# """#???? | | ??????????????????????# #?????????????# " #???? | | ""???????????? ??????#g#?######??????# #???? | | ""???????????? ?"""# #?# #??????# #???? | | ""???????????# R"# ### #??????########???? | | ?????????????# """# # ########??????????? | | ?????????????# + # # =#??????????? | | ?????????????# """ #u + # """ #??????????? | | ?????????????#? """?# bm#"" # """ #????####### | | ??????????????? """?#g%g#"T # " ####### | | ??????????????????????# g #"" # # ###### | | ??????????????????????# # # # | | ????????????????????### ###### + | | ??????????####??????# # ##?# # # | | ???"""??T?# ####### ###### # ###### | | ??"""""???# @ u # ## #### ## | | ??"""""???+ % t ## #??#### | | ??"""""???# % [ # " ## #?????# | | ???"""????# #######+######## ## #?????# | | ??????????## ????# % ###??######### #?????# | | ???????????#? ?????# "" #????????????# #?????# | | ??????????????????# """ #????????????# #?????? | | ??????????????????## """ #?????????#### ####### | | ???????????????????# """ #?????????# | | ???????????????????# """ #??########%% | | ???????????????????# ? + "%%% | | ???????????????????#!!? #?### ######/########+## | | ???????????????????#!?? #?????# [ %![## | | ???????????????????# ??? #?????# """"""!%## | | ???????????????????#???? #?????# """""""=# " | | ???????????????????????? ??????# """"""![## """ | | ???????????????????????? ??????# """""""!## """ | | ????????????????????????##??????# """""""[## """ | | ????????????????????????????????# !!*## "" | | ????????????????????????????????# !## """ | | ????????????????????????????????############ "" | | ???????????????????????????????????????????# """ | | ???????????????????????????????????????????# " | | ???????????????????????????????????????????# = | | ???????????????????????????????????????????# | +----------------------------------------------------+ Best States ------------- Heat Dissipation 50 Energy Generation 14 Energy Capacity 240 Matter Stores 300 Matter Capacity 300 Sight Range 16 Terrain Scan Density 85 Evasion (%) 50 Item Schematics ----------------- None Robot Schematics ------------------ None Fabricated ------------ Nothing Alien Tech Used ----------------- None Achievements -------------- None Challenges ------------ None Game ------ Seed ThrowingActuatorDevice Manual? 0 Play Time 00:18:03 Cumulative 54.1 hours Start 2024.05.09 @ 15:04:44 End 2024.05.09 @ 15:24:53 Sessions 2 Manual Loads 0 Difficulty Rogue Special Mode None Game No. 51 Rogue 51 Adventurer 0 Explorer 0 Win Type - Total 1 Types 1/0/0/0/0/0/0/0/0 Lore% 12 Gallery% 35 Achievement% 31 Wizard Run 0 Options --------- Layout 0 ASCII 0 Keyboard 1 Movement Numpad Keybinds 0 Fullscreen 1 Font 18/SmallcapsGlow Map View 76x50 Zoom Use 0% Tactical HUD 1 Map Filters NONE Filters NONE Steam 1 RUN: 7530b876-bcbd-4ae1-b6b8-68cee4670994